bitfinex-derivatives/quotes_SOLF0:USTF0_20250518
["timestamp","ask_amount","ask_price","bid_price","bid_amount"]
[1747598497745,19.03408258,164.93,164.83,3.99022461]
[1747598497940,19.03408258,164.91,164.83,3.99022461]
[1747598498242,19.03408258,164.9,164.83,3.99022461]
[1747598498436,19.03408258,164.89,164.84,6.0638]
[1747598498637,19.03408258,164.88,164.83,3.99022461]
[1747598498945,49.28405797,164.84,164.83,3.99022461]
[1747598499243,19.03408258,164.84,164.83,3.99022461]
[1747598499540,6.73984714,165.05,164.88,6.0621]
[1747598499541,6.1046,164.96,164.88,6.0621]
[1747598499744,19.03408258,164.91,164.83,3.99022461]
[1747598500043,30.24997539,164.88,164.84,6.0638]
[1747598500341,19.03408258,164.93,164.83,3.99022461]
[1747598500844,19.03408258,164.9,164.83,3.99022461]
[1747598501038,19.03408258,164.93,164.83,3.99022461]
[1747598501345,6.73984714,165.05,164.89,26.40500817]
[1747598501649,6.73984714,165.05,165.04,6.0565]
[1747598501845,4.714e-05,165.05,165.04,6.0565]
[1747598502346,25.56191786,165.12,165.1,6.0543]
[1747598502539,13.60681786,165.12,165.1,6.0543]
[1747598502734,6.15,165.2,165.03,523.36]
[1747598502939,19.03408258,165.13,165.12,6.0534]
[1747598503142,19.03408258,165.11,165.03,523.36]
[1747598503343,8.703e-05,165.1,165.09,6.0547]
[1747598503644,8.703e-05,165.1,165.03,523.36]
[1747598504344,8.703e-05,165.1,165.08,6.055]
[1747598504544,8.703e-05,165.1,165.03,523.36]
[1747598504742,19.03408258,165.06,164.93,523.22]
[1747598504942,20.24583659,165.05,164.93,523.22]
[1747598505239,1.21182743,165.04,164.93,523.22]
[1747598505940,6.15,165.2,165.07,6.0551]
[1747598506238,49.28405797,165.13,164.97,26.63606963]
[1747598506445,1.21124031,165.12,164.93,523.22]
[1747598506644,2.0516,165.29,165.05,26.63606963]
[1747598506944,1.9165,165.39,165.11,26.63606963]
[1747598507142,49.28405797,165.35,165.15,26.63606963]
[1747598507341,30.24997539,165.36,165.21,26.63606963]
[1747598507646,1.20933607,165.38,165.35,6.0451]
[1747598507839,1.20933607,165.38,165.31,523.2]
[1747598508036,1.20933607,165.38,165.33,6.0458]
[1747598508240,1.20933607,165.38,165.31,523.2]
[1747598508440,49.28405797,165.34,165.31,523.2]
[1747598508744,49.28405797,165.32,165.31,513.2]
[1747598509141,49.28405797,165.32,165.22,523.2]
[1747598509342,49.28405797,165.27,165.22,524.4105072]
[1747598509538,19.03408258,165.27,165.22,524.4105072]
[1747598509736,49.28405797,165.23,165.22,1.2105072]
[1747598509934,19.03408258,165.26,165.22,1.2105072]
[1747598510135,19.03408258,165.28,165.22,1.2105072]
[1747598510442,49.28405797,165.28,165.22,1.2105072]
[1747598510640,1.9904,165.41,165.27,6.048]
[1747598510848,49.28405797,165.33,165.13,522.92]
[1747598511044,19.03408258,165.32,165.14,1.9048]
[1747598511248,1.8944,165.42,165.14,1.9048]
[1747598511443,19.03408258,165.33,165.14,1.9048]
[1747598511645,19.03408258,165.34,165.14,1.9048]
[1747598512355,19.03408258,165.34,165.29,6.0472]
[1747598512646,19.03408258,165.33,165.27,522.92]
[1747598512847,1.8944,165.42,165.27,522.7]
[1747598513042,19.03408258,165.35,165.27,522.7]
[1747598513244,30.24997539,165.36,165.27,522.7]
[1747598513548,19.03408258,165.32,165.27,522.7]
[1747598513750,49.28405797,165.29,165.27,522.7]
[1747598513951,30.24997539,165.32,165.27,522.7]
[1747598514147,1.8944,165.42,165.27,522.7]
[1747598514346,19.03408258,165.32,165.27,522.7]
[1747598514747,19.03408258,165.3,165.27,522.7]
[1747598514956,19.03408258,165.29,165.27,522.7]
[1747598515345,1.8944,165.42,165.27,522.7]
[1747598515542,19.03408258,165.32,165.27,522.7]
[1747598515752,30.24997539,165.3,165.27,522.7]
[1747598516049,19.03408258,165.29,165.27,522.7]
[1747598516441,19.03408258,165.28,165.27,522.7]
[1747598516647,49.28405797,165.28,165.27,522.7]
[1747598516852,19.03408258,165.28,165.27,522.7]
[1747598517743,1.8944,165.42,165.27,522.7]
[1747598517942,19.03408258,165.31,165.27,522.7]
[1747598518152,19.03408258,165.29,165.27,522.7]
[1747598518552,49.28405797,165.28,165.27,522.7]
[1747598519059,1.8944,165.42,165.27,522.7]
[1747598519263,19.03408258,165.32,165.27,522.7]
[1747598519555,1.8944,165.42,165.13,3.28906695]
[1747598519556,49.28405797,165.28,165.13,1.21116695]
[1747598519752,49.28405797,165.23,165.13,1.21116695]
[1747598519956,49.28405797,165.3,165.14,522.56]
[1747598520250,49.28405797,165.33,165.15,1.21102028]
[1747598520442,49.28405797,165.34,165.18,26.63606963]
[1747598520646,49.28405797,165.33,165.19,4.0273]
[1747598521458,49.28405797,165.32,165.19,4.0273]
[1747598521857,19.03408258,165.32,165.19,4.0273]
[1747598522057,49.28405797,165.29,165.19,4.0273]
[1747598522263,49.28405797,165.3,165.19,4.0273]
[1747598522757,26.63606963,165.41,165.15,1.21102028]
[1747598522957,30.24997539,165.2,165.15,1.21102028]
[1747598523262,30.24997539,165.17,165.15,1.21102028]
[1747598523459,49.28405797,165.16,165.15,1.21102028]
[1747598523657,49.28405797,165.16,165.14,522.56]
[1747598523861,49.28405797,165.15,165.14,522.56]
[1747598524063,49.28405797,165.15,165.05,522.48]
[1747598524374,49.28405797,165.14,165.05,522.48]
[1747598524562,49.28405797,165.11,165.05,522.48]
[1747598524866,19.03408258,165.12,165.05,522.48]
[1747598525060,30.24997539,165.15,165.05,522.48]
[1747598525260,19.03408258,165.15,165.05,522.48]
[1747598525666,3.884,165.28,165.05,522.48]
[1747598525970,19.03408258,165.12,165.05,522.48]
[1747598526270,19.03408258,165.08,165.05,522.48]
[1747598526462,19.03408258,165.07,165.05,522.48]
[1747598526662,49.28405797,165.06,164.95,3.8874]
[1747598526972,19.03408258,164.99,164.95,522.6]
[1747598527164,19.03408258,164.98,164.95,522.6]
[1747598527369,49.28405797,164.96,164.85,524.5544]
[1747598527558,30.24997539,164.96,164.88,6.0623]
[1747598527765,19.03408258,164.91,164.89,1.21292983]
[1747598528166,49.28405797,164.9,164.89,1.21292983]
[1747598528857,1.8911,164.95,164.85,522.6]
[1747598529064,49.28405797,164.89,164.85,522.6]
[1747598529264,19.03408258,164.87,164.85,522.6]
[1747598529466,30.24997539,164.88,164.85,522.6]
[1747598529674,19.03408258,164.86,164.83,3.99022461]
[1747598529867,19.03408258,164.85,164.83,3.99022461]
[1747598530062,19.03408258,164.84,164.83,3.99022461]
[1747598530268,49.28405797,164.84,164.83,3.99022461]
[1747598530771,1.9744,164.93,164.83,3.99022461]
[1747598531069,19.03408258,164.86,164.83,3.99022461]
[1747598531270,19.03408258,164.91,164.83,3.99022461]
[1747598531665,1.9436,164.94,164.84,6.0636]
[1747598531666,30.24997539,164.89,164.84,6.0636]
[1747598531868,26.63606963,165.07,164.83,3.99022461]
[1747598532065,19.03408258,164.84,164.83,3.99022461]
[1747598532375,19.03408258,164.86,164.83,3.99022461]
[1747598532577,19.03408258,164.87,164.83,3.99022461]
[1747598532767,19.03408258,164.84,164.83,3.99022461]
[1747598532969,9.09438258,164.86,164.83,3.99022461]
[1747598533167,3.9652,165.01,164.9,6.0614]
[1747598533374,30.24997539,164.9,164.83,3.99022461]
[1747598533575,30.24997539,164.96,164.83,3.99022461]
[1747598533776,30.24997539,164.95,164.83,3.99022461]
[1747598533976,3.9652,165.01,164.83,3.99022461]
[1747598533977,30.24997539,164.92,164.83,3.99022461]
[1747598534276,30.24997539,164.93,164.83,3.99022461]
[1747598534476,1.21263566,164.93,164.83,3.99022461]
[1747598534678,3.566e-05,164.93,164.83,3.99022461]
[1747598536178,30.24997539,164.9,164.83,3.99022461]
[1747598536374,18.38337539,164.92,164.83,3.99022461]
[1747598536578,3.566e-05,164.93,164.83,3.99022461]
[1747598536878,3.566e-05,164.93,164.91,6.0611]
[1747598537074,3.566e-05,164.93,164.92,523.42]
[1747598537875,3.566e-05,164.93,164.92,529.48]
[1747598538180,3.566e-05,164.93,164.92,523.42]
[1747598538877,3.566e-05,164.93,164.92,529.48]
[1747598539383,1.9126,165.09,164.92,529.48]
[1747598539582,18.38337539,165.07,164.92,523.42]
[1747598539784,1.2115338,165.08,165.06,6.0558]
[1747598540084,3.38e-05,165.08,165.06,6.0558]
[1747598540582,18.38337539,165.07,165.04,529.4763]
[1747598540881,18.38337539,165.05,164.94,523.42]
[1747598541085,18.38337539,164.96,164.94,523.42]
[1747598541377,18.38337539,164.97,164.94,523.42]
[1747598541587,18.38337539,164.95,164.85,525.4596]
[1747598541781,4.0084,165.05,164.85,523.42]
[1747598541782,18.38337539,164.91,164.85,523.42]
[1747598541981,18.38337539,164.93,164.85,523.42]
[1747598542183,18.38337539,164.94,164.93,6.0604]
[1747598542379,18.38337539,164.91,164.85,523.42]
[1747598542583,18.38337539,164.9,164.85,523.42]
[1747598542782,1.964,165.04,164.75,523.48]
[1747598543081,18.38337539,164.86,164.72,2.0317]
[1747598543280,18.38337539,164.84,164.72,2.0317]
[1747598544181,18.38337539,164.84,164.71,1.912]
[1747598544382,18.38337539,164.84,164.83,0.85662461]
[1747598544580,26.63606963,164.99,164.71,1.912]
[1747598544776,18.38337539,164.78,164.69,1.05582524]
[1747598544981,18.38337539,164.8,164.75,6.067]
[1747598545181,18.38337539,164.79,164.67,523.48]
[1747598545389,18.38337539,164.77,164.67,523.48]
[1747598545590,18.38337539,164.76,164.67,523.48]
[1747598546084,26.63606963,164.94,164.68,1.21447656]
[1747598546282,18.38337539,164.75,164.68,1.21447656]
[1747598546691,523.68,164.95,164.68,1.21447656]
[1747598546882,9.05217539,164.74,164.68,1.21447656]
[1747598547076,26.63606963,164.92,164.68,1.21447656]
[1747598547282,9.05217539,164.76,164.68,1.21447656]
[1747598547489,9.05217539,164.74,164.68,1.21447656]
[1747598547682,7.981,164.91,164.69,6.0693]
[1747598547888,9.05217539,164.73,164.69,6.0693]
[1747598548085,9.05217539,164.74,164.68,1.21447656]
[1747598548287,9.05217539,164.73,164.68,1.21447656]
[1747598548483,9.05217539,164.74,164.68,1.21447656]
[1747598548682,1.9197,164.91,164.72,6.068]
[1747598548882,1.9197,164.91,164.68,1.21447656]
[1747598549591,1.9544,164.9,164.68,1.21447656]
[1747598549890,6.063,164.87,164.68,1.21447656]
[1747598550087,26.63606963,164.85,164.68,1.21447656]
[1747598550288,26.63606963,164.85,164.68,7.28407656]
[1747598550689,26.63606963,164.73,164.48,523.82]
[1747598550884,3.9774,164.72,164.56,6.0739]
[1747598551088,3.9774,164.72,164.48,523.82]
[1747598551485,3.9774,164.72,164.56,6.0738]
[1747598551893,3.9774,164.72,164.58,6.0732]
[1747598552087,3.9774,164.72,164.48,523.82]
[1747598552491,3.9774,164.72,164.6,6.0726]
[1747598552682,3.9774,164.72,164.48,523.82]
[1747598553597,3.9774,164.72,164.49,29.75867924]
[1747598553792,29.75867924,164.86,164.55,29.75867924]
[1747598553985,29.75867924,164.86,164.56,3.9668]
[1747598554180,3.8226,164.87,164.65,6.0706]
[1747598554384,3.8226,164.87,164.6,524.06]
[1747598554892,3.8226,164.87,164.61,31.73777924]
[1747598555094,3.8226,164.87,164.61,1.9791]
[1747598555888,1.972,164.86,164.61,1.9791]
[1747598557195,3.8226,164.87,164.61,31.73777924]
[1747598557393,5.7946,164.87,164.61,1.9791]
[1747598557791,5.7946,164.87,164.63,29.75867924]
[1747598557986,5.7946,164.87,164.61,1.9791]
[1747598558895,5.7946,164.87,164.63,29.75867924]
[1747598559395,1.05628993,165.01,164.7,29.75867924]
[1747598559591,3.8783,164.97,164.71,6.017]
[1747598559792,3.8783,164.97,164.72,524.06]
[1747598559991,3.8783,164.97,164.86,6.0629]
[1747598560192,2.0471,165.0,164.77,29.75867924]
[1747598560490,5.15198063,165.03,164.77,29.75867924]
[1747598560689,5.15198063,165.03,164.81,29.75867924]
[1747598560886,5.15198063,165.03,164.82,5.8553]
[1747598561092,3.8936,165.06,164.93,6.0604]
[1747598561392,3.8936,165.06,164.89,523.94]
[1747598561591,530.1123,165.16,164.95,6.0595]
[1747598561794,6.032,165.15,164.89,523.94]
[1747598562198,6.032,165.15,164.97,6.0589]
[1747598562390,6.032,165.15,164.9,29.75867924]
[1747598562592,6.032,165.15,164.89,553.69867924]
[1747598562793,6.032,165.15,164.97,6.0588]
[1747598562989,6.032,165.15,164.89,553.69867924]
[1747598563300,6.032,165.15,164.98,6.0586]
[1747598563597,6.032,165.15,164.89,523.94]
[1747598564000,6.032,165.15,164.92,29.75867924]
[1747598564204,6.032,165.15,164.93,2.0326]
[1747598564495,12.0846,165.15,164.94,2.0636]
[1747598564700,6.032,165.15,164.94,2.0636]
[1747598565098,5.15198063,165.25,164.96,29.5870565]
[1747598565300,5.15198063,165.25,165.03,29.5870565]
[1747598565498,5.15198063,165.25,165.06,29.55194501]
[1747598565697,5.15198063,165.25,165.07,3.9803]
[1747598566202,5.15198063,165.25,165.11,29.5325446]
[1747598566503,5.15198063,165.25,165.22,6.0499]
[1747598566801,5.15198063,165.25,165.18,523.38]
[1747598567005,5.15198063,165.25,165.19,1.8833]
[1747598567198,1.9474,165.37,165.19,1.8833]
[1747598567501,42.36,165.24,165.19,1.8833]
[1747598568004,42.36,165.24,165.18,523.38]
[1747598568599,42.36,165.24,165.08,525.2652]
[1747598569402,42.36,165.24,165.08,523.38]
[1747598569702,33.4069785,165.23,165.0,3.8414]
[1747598569906,29.60860624,165.22,164.99,523.22]
[1747598570100,29.62689182,165.16,164.99,523.22]
[1747598570297,1.9933,165.15,164.99,523.22]
[1747598570502,29.61907863,165.19,164.99,523.22]
[1747598570698,1.9933,165.22,165.0,1.8852]
[1747598570904,29.62264038,165.17,165.0,1.8852]
[1747598571108,5.17414529,165.16,165.0,1.8852]
[1747598571602,5.17414529,165.16,165.01,4.0026]
[1747598572207,0.17414529,165.16,165.01,4.0026]
[1747598572506,6.0514,165.18,165.01,4.0026]
[1747598572707,28.9933,165.22,165.01,4.0026]
[1747598573008,27.0,165.22,165.12,6.0534]
[1747598573210,3.8048,165.23,165.01,4.0026]
[1747598573708,3.8048,165.23,165.07,6.0554]
[1747598573908,3.8048,165.23,165.01,4.0026]
[1747598575209,3.8048,165.23,165.09,6.0545]
[1747598575411,3.8048,165.23,165.01,4.0026]
[1747598576711,3.8048,165.23,165.11,6.0539]
[1747598576911,3.8048,165.23,165.01,4.0026]
[1747598579311,3.8048,165.23,165.15,6.0525]
[1747598579509,3.8048,165.23,165.01,4.0026]
[1747598580301,42.36,165.24,165.01,4.0026]
[1747598580508,42.36,165.24,165.05,29.59151992]
[1747598580715,42.36,165.24,165.11,29.59151992]
[1747598581010,42.36,165.24,165.12,528.9588]
[1747598581527,6.86930751,165.36,165.12,528.9588]
[1747598581718,6.86930751,165.36,165.12,558.48798583]
[1747598582015,6.86930751,165.36,165.12,528.9588]
[1747598582222,1.20977498,165.32,165.15,29.51859439]
[1747598582519,1.20977498,165.32,165.12,528.9588]
[1747598582720,1.20977498,165.32,165.15,29.51859439]
[1747598582937,1.20977498,165.32,165.12,558.47739439]
[1747598583217,1.20977498,165.32,165.12,528.9588]
[1747598583820,1.20977498,165.32,165.12,526.9961]
[1747598584224,6.0484,165.27,165.12,524.9963]
[1747598584517,1.20977498,165.32,165.12,523.04]
[1747598584518,5.7966,165.26,165.12,523.04]
[1747598584726,35.38819467,165.26,165.12,523.04]
[1747598584914,35.38997522,165.26,165.03,522.84]
[1747598585115,6.0492,165.24,165.1,6.054]
[1747598585318,35.35,165.23,165.03,522.84]
[1747598586440,35.35,165.23,165.07,29.59337522]
[1747598586838,35.35,165.23,165.08,1.9241]
[1747598587334,41.3996,165.23,165.09,6.0544]
[1747598587536,35.35,165.23,165.04,1.9241]
[1747598587734,29.61059076,165.21,165.04,1.9241]
[1747598587934,31.68224055,165.2,165.03,522.84]
[1747598588443,6.0514,165.18,165.06,6.0557]
[1747598588644,31.68224055,165.2,165.03,522.84]
[1747598588844,31.68265527,165.2,165.03,522.84]
[1747598589035,2.0674,165.2,165.03,522.84]
[1747598589240,35.35,165.23,165.04,2.0329]
[1747598589937,35.35,165.23,165.05,3.8308]
[1747598590138,35.35,165.23,165.05,1.9029]
[1747598590343,1.8781,165.22,165.04,2.0329]
[1747598590740,35.35,165.23,165.04,2.0329]
[1747598591143,35.35,165.23,165.1,6.0543]
[1747598591346,35.35,165.23,165.04,2.0329]
[1747598592250,35.35,165.23,165.05,2.0726]
[1747598592748,35.35,165.23,165.19,6.0508]
[1747598592935,35.35,165.23,165.05,2.0726]
[1747598593433,35.35,165.23,165.04,2.0329]
[1747598594141,29.57516485,165.19,165.04,2.0329]
[1747598594340,30.9659,165.18,164.94,522.84]
[1747598594541,30.9659,165.18,164.95,1.9173]
[1747598595048,30.9659,165.18,164.96,1.21241513]
[1747598595345,6.0525,165.15,164.96,1.21241513]
[1747598595547,2.0119,165.14,164.96,1.21241513]
[1747598595741,27.0,165.13,164.96,1.21241513]
[1747598596446,56.57516485,165.13,164.96,1.21241513]
[1747598596645,29.57516485,165.07,164.96,1.21241513]
[1747598596847,3.969,165.06,164.96,1.21241513]
[1747598597047,3.969,165.06,164.97,6.0591]
[1747598597249,3.969,165.06,164.96,1.21241513]
[1747598597549,2.0119,165.14,164.96,1.21241513]
[1747598597751,2.0119,165.14,164.97,1.9786]
[1747598597942,2.0119,165.14,164.97,3.8607]
[1747598598643,31.62427739,165.14,164.97,3.19094163]
[1747598599957,2.0119,165.14,164.97,3.19094163]
[1747598600149,2.0119,165.14,165.02,6.0572]
[1747598600554,2.0119,165.14,164.97,3.19094163]
[1747598601049,35.26,165.13,164.97,3.19094163]
[1747598602255,29.64510155,165.09,164.97,1.21234163]
[1747598602454,29.64510155,165.09,164.85,523.06]
[1747598602748,6.0576,165.02,164.86,1.915]
[1747598603058,29.66040295,165.05,164.86,1.915]
[1747598603254,6.0569,165.03,164.86,1.915]
[1747598603465,29.65250722,165.07,164.86,1.915]
[1747598603657,29.65250722,165.07,164.85,523.06]
[1747598603956,5.1620571,165.02,164.85,523.06]
[1747598605258,5.1620571,165.02,164.85,552.70283899]
[1747598605859,5.15198063,165.1,164.85,523.06]
[1747598607254,5.15198063,165.1,164.89,29.64283899]
[1747598607463,5.15198063,165.1,164.95,29.64283899]
[1747598607756,5.15198063,165.1,164.96,5.981]
[1747598608056,1.21146041,165.09,164.97,523.32]
[1747598608252,5.15198063,165.1,165.09,6.0547]
[1747598608253,2.02078063,165.1,165.09,6.0547]
[1747598608452,42.12930751,165.13,164.97,523.32]
[1747598609154,35.26,165.13,164.97,523.32]
[1747598610459,18.5742,165.13,165.12,6.0536]
[1747598610658,2.0024,165.26,165.11,523.22]
[1747598610959,2.0024,165.26,165.12,523.22]
[1747598611154,2.0024,165.26,165.13,523.22]
[1747598611359,2.0024,165.26,165.15,6.0522]
[1747598611555,2.0024,165.26,165.13,523.22]
[1747598611859,2.0024,165.26,165.03,523.08]
[1747598612253,29.64283899,165.22,165.03,523.08]
[1747598613066,29.64283899,165.22,165.04,6.0565]
[1747598613253,29.64283899,165.22,165.03,523.08]
[1747598613450,29.64283899,165.22,164.89,12.1239]
[1747598613663,7.75317254,165.21,164.94,523.08]
[1747598613853,2.67684365,165.2,164.94,523.08]
[1747598614055,2.0154,165.2,164.94,523.08]
[1747598614860,2.0154,165.2,164.94,552.72283899]
[1747598615059,2.0154,165.2,165.08,6.0549]
[1747598615256,2.0154,165.2,164.94,552.72283899]
[1747598615461,6.0528,165.15,165.03,6.0568]
[1747598615764,3.8567,165.14,164.94,552.72283899]
[1747598615955,1.9093,165.14,164.94,552.72283899]
[1747598616162,2.0154,165.2,164.96,29.64283899]
[1747598616558,2.0154,165.2,165.1,6.054]
[1747598616864,2.0154,165.2,164.96,29.64283899]
[1747598617066,2.0154,165.2,164.96,47.79283899]
[1747598617262,2.0154,165.2,164.96,59.91173899]
[1747598617565,2.0154,165.2,164.96,47.79283899]
[1747598617766,2.0154,165.2,164.97,30.2682]
[1747598618270,3.8567,165.23,165.02,29.56612321]
[1747598618460,3.8567,165.23,165.03,0.8227]
[1747598619661,1.9093,165.23,165.03,0.8227]
[1747598619860,1.8947,165.29,165.05,18.15]
[1747598620065,4.0069,165.32,165.08,29.56612321]
[1747598620267,4.0069,165.32,165.21,6.05]
[1747598620565,4.0069,165.32,165.08,29.56612321]
[1747598621372,4.0069,165.32,165.23,6.0496]
[1747598621669,4.0069,165.32,165.08,29.56612321]
[1747598621670,4.0069,165.32,165.18,522.98]
[1747598621965,2.0465,165.32,165.18,522.98]
[1747598622969,1.992,165.31,165.18,522.98]
[1747598625364,1.992,165.31,165.09,522.86]
[1747598625569,6.0482,165.27,165.18,6.0513]
[1747598625762,1.9313,165.26,165.09,522.86]
[1747598626159,29.56612321,165.23,165.11,6.0539]
[1747598626564,35.61602321,165.23,165.16,6.0518]
[1747598626765,1.9313,165.26,165.02,12.1145]
[1747598627970,1.9313,165.26,165.0,522.86]
[1747598628268,29.56612321,165.23,165.0,522.86]
[1747598628671,29.56612321,165.23,165.0,534.9755]
[1747598628866,5.02469448,165.25,165.0,522.86]
[1747598629061,5.02469448,165.25,165.02,29.56612321]
[1747598629277,5.02469448,165.25,165.07,12.1108]
[1747598629570,5.02469448,165.25,165.08,30.38412321]
[1747598629765,5.02469448,165.25,165.08,0.818]
[1747598630161,5.02469448,165.25,165.19,6.0507]
[1747598630366,1.992,165.31,165.16,522.9]
[1747598630872,1.992,165.31,165.19,6.0507]
[1747598631070,1.992,165.31,165.16,522.9]
[1747598632169,1.992,165.31,165.16,528.9518]
[1747598632370,1.992,165.31,165.16,522.9]
[1747598632773,29.56612321,165.26,165.07,522.84]
[1747598632972,1.8945,165.25,165.07,522.84]
[1747598634167,1.8945,165.25,165.07,528.8952]
[1747598634467,29.56612321,165.2,164.91,29.56612321]
[1747598634773,31.042,165.19,165.04,6.0565]
[1747598634973,27.0,165.18,164.98,522.84]
[1747598635178,6.0529,165.14,165.05,6.0558]
[1747598635374,6.0529,165.14,164.99,1.21219467]
[1747598635876,56.63560267,165.13,164.99,1.21219467]
[1747598636063,2.067,165.12,164.99,1.21219467]
[1747598637978,6.0544,165.1,165.0,6.058]
[1747598638165,2.067,165.12,164.99,1.21219467]
[1747598638370,2.067,165.12,165.01,1.21204775]
[1747598638777,6.0544,165.1,165.01,1.21204775]
[1747598638976,2.067,165.12,165.01,1.21204775]
[1747598639272,4.042,165.19,165.01,524.25204775]
[1747598641371,1.9123,165.25,165.01,524.25204775]
[1747598641674,3.9139,165.25,165.01,553.87031691]
[1747598642173,29.61826916,165.32,165.01,553.87031691]
[1747598642373,2.056,165.31,165.07,29.61826916]
[1747598642576,2.056,165.31,165.08,0.8193]
[1747598643173,6.0511,165.19,165.08,6.0548]
[1747598643374,2.056,165.31,165.01,524.25204775]
[1747598643375,29.58984894,165.26,165.02,0.8193]
[1747598643778,2.056,165.31,165.02,0.8193]
[1747598644579,29.58984894,165.25,165.02,0.8193]
[1747598644778,56.58984894,165.25,165.02,0.8193]
[1747598644981,56.58984894,165.25,165.07,6.0551]
[1747598645184,56.58984894,165.25,165.02,0.8193]
[1747598645679,27.0,165.25,165.02,0.8193]
[1747598645881,540.0,165.3,165.04,29.57895465]
[1747598646080,546.0473,165.3,165.17,6.0517]
[1747598646377,2.056,165.31,165.13,522.98]
[1747598646578,8.1027,165.31,165.18,6.0513]
[1747598646778,2.056,165.31,165.14,0.8193]
[1747598648175,27.0,165.33,165.14,0.8193]
[1747598649385,2.0016,165.34,165.14,0.8193]
[1747598649882,7.02333791,165.36,165.16,29.57895465]
[1747598650681,6.20693791,165.36,165.16,29.57895465]
[1747598650977,29.57895465,165.52,165.22,29.57895465]
[1747598651178,3.9337,165.51,165.22,29.57895465]
[1747598651378,3.9337,165.51,165.39,6.0437]
[1747598651582,3.9337,165.51,165.33,522.74]
[1747598651782,6.0397,165.5,165.36,6.0446]
[1747598652085,3.9337,165.51,165.33,522.74]
[1747598652889,3.9337,165.51,165.4,6.0432]
[1747598653282,3.9337,165.51,165.33,522.74]
[1747598654383,1.05220191,165.6,165.33,552.19378314]
[1747598654681,3.8684,165.59,165.33,552.19378314]
[1747598655289,3.8684,165.59,165.39,29.45378314]
[1747598655883,1.9574,165.59,165.39,29.45378314]
[1747598656081,1.9637,165.62,165.54,6.0382]
[1747598656292,29.45378314,165.75,165.47,522.56]
[1747598656478,5.9946,165.72,165.47,522.56]
[1747598656682,6.0336,165.67,165.47,522.56]
[1747598656879,5.9946,165.72,165.47,522.56]
[1747598657293,29.45378314,165.69,165.47,522.56]
[1747598657692,29.45378314,165.63,165.38,522.28]
[1747598657988,2.0735,165.62,165.38,522.28]
[1747598658188,2.0735,165.62,165.44,6.0419]
[1747598658390,29.45378314,165.57,165.44,6.0419]
[1747598658587,29.45378314,165.57,165.38,522.28]
[1747598658780,29.45378314,165.57,165.45,6.0412]
[1747598658987,29.45378314,165.57,165.38,522.28]
[1747598659391,3.9094,165.61,165.38,522.28]
[1747598660295,6.038,165.55,165.38,522.28]
[1747598660494,33.36318314,165.61,165.38,522.28]
[1747598661395,33.36318314,165.61,165.45,6.0415]
[1747598661590,29.45378314,165.55,165.38,522.28]
[1747598661786,6.0411,165.47,165.42,6.0425]
[1747598662096,522.2,165.57,165.3,12.0934]
[1747598662297,522.2,165.57,165.31,12.0933]
[1747598662490,6.0386,165.54,165.31,12.0933]
[1747598662693,1.9299,165.53,165.31,12.0933]
[1747598662891,6.0401,165.49,165.31,12.0933]
[1747598663090,1.9299,165.53,165.31,12.0933]
[1747598663289,1.9299,165.53,165.29,522.2]
[1747598663503,6.0405,165.48,165.41,6.0426]
[1747598663795,1.9931,165.47,165.29,522.2]
[1747598664398,6.0419,165.44,165.29,522.2]
[1747598664590,1.9931,165.47,165.29,522.2]
[1747598664795,31.46748314,165.43,165.2,522.18]
[1747598664994,1.9299,165.42,165.2,522.18]
[1747598666094,29.45378314,165.4,165.2,522.18]
[1747598666399,6.0442,165.38,165.28,6.0474]
[1747598666895,31.38368314,165.42,165.2,522.18]
[1747598667595,1.9299,165.42,165.2,522.18]
[1747598667795,1.9299,165.42,165.21,41.55438314]
[1747598667995,522.22,165.55,165.2,522.18]